fUST/lending_fUST_20250227
["ID","MTS","AMOUNT","RATE_DAILY","PERIOD"]
[354679026,1740612673041,-531.78,0.00051232,120]
[354679027,1740612673050,-5165.94,0.00051232,120]
[354679028,1740612673060,-1296.39,0.00051232,120]
[354679029,1740612673069,-977.962218,0.00051232,120]
[354679030,1740612673079,-608.33181605,0.00051232,120]
[354679031,1740612673088,-745.32,0.00051232,120]
[354679032,1740612673097,-1319.72,0.00051232,120]
[354679033,1740612673107,-1434.05,0.00051232,120]
[354679034,1740612673116,-602.5,0.00051232,120]
[354679035,1740612673125,-901.96,0.00051232,120]
[354679036,1740612673134,-298.512815,0.00051232,120]
[354679037,1740612673143,-500.0,0.00051232,120]
[354679038,1740612673152,-11788.68,0.00051232,120]
[354679039,1740612673162,-298.512815,0.00051232,120]
[354679040,1740612673171,-3610.93,0.00051232,120]
[354679041,1740612673180,-506.91,0.00051232,120]
[354679042,1740612673190,-1267.92,0.00051232,120]
[354679043,1740612673199,-2222.15,0.00051232,120]
[354679044,1740612673208,-600.75,0.00051232,120]
[354679045,1740612673218,-385.543995,0.00051232,120]
[354679046,1740612673227,-385.543993,0.00051232,120]
[354679047,1740612673237,-963.51,0.00051232,120]
[354679048,1740612673246,-1872.17,0.00051232,120]
[354679049,1740612673256,-7675.21,0.00051232,120]
[354679050,1740612673266,-3447.65,0.00051232,120]
[354679051,1740612673275,-500.0,0.00051232,120]
[354679052,1740612673285,-714.42,0.00051232,120]
[354679053,1740612673295,-382.945595,0.00051232,120]
[354679054,1740612673304,-500.0,0.00051232,120]
[354679055,1740612673313,-382.94559,0.00051232,120]
[354679056,1740612673323,-1518.89,0.00051232,120]
[354679057,1740612673332,-828.63,0.00051232,120]
[354679058,1740612673342,-500.0,0.00051232,120]
[354679059,1740612673351,-500.0,0.00051232,120]
[354679060,1740612673361,-874.37,0.00051232,120]
[354679061,1740612673371,-16446.27,0.00051232,120]
[354679062,1740612673380,-987.91,0.00051232,120]
[354679063,1740612673390,-544.41,0.00051232,120]
[354679064,1740612673400,-500.0,0.00051232,120]
[354679065,1740612673409,-1207.51,0.00051238,120]
[354679066,1740612673420,-818.25,0.00051238,120]
[354679067,1740612673430,-582.64,0.00051238,120]
[354679068,1740612673439,-565.06,0.00051238,120]
[354679069,1740612673449,-797.5,0.00051238,120]
[354679070,1740612673458,-699.41,0.00051238,120]
[354679071,1740612673467,-2789.44,0.00051238,120]
[354679072,1740612673476,-650.93,0.00051238,120]
[354679073,1740612673486,-910.21,0.00051238,120]
[354679074,1740612673495,-3161.02,0.00051238,120]
[354679075,1740612673504,-500.0,0.00051238,120]
[354679076,1740612673513,-725.05,0.00051238,120]
[354679077,1740612673523,-500.0,0.00051238,120]
[354679078,1740612673532,-3123.49,0.00051238,120]
[354679079,1740612673542,-1532.22,0.00051238,120]
[354679080,1740612673551,-696.04,0.00051238,120]
[354679081,1740612673560,-775.5,0.00051238,120]
[354679082,1740612673570,-1560.0,0.00051238,120]
[354679083,1740612673579,-554.15,0.00051238,120]
[354679084,1740612673588,-508.29,0.00051238,120]
[354679085,1740612673599,-636.3,0.00051238,120]
[354679086,1740612673608,-1875.09,0.00051238,120]
[354679087,1740612673617,-506.26,0.00051238,120]
[354679088,1740612673627,-727.01,0.00051238,120]
[354679089,1740612673636,-738.9,0.00051238,120]
[354679090,1740612673649,-500.0,0.00051238,120]
[354679091,1740612673660,-500.0,0.00051238,120]
[354679092,1740612673672,-500.0,0.00051238,15]
[354679093,1740612673682,-500.0,0.00051238,120]
[354679094,1740612673693,-2768.85,0.00051238,120]
[354679095,1740612673706,-937.23,0.00051238,120]
[354679096,1740612673716,-786.35,0.00051238,120]
[354679097,1740612673725,-540.54,0.00051262,120]
[354679098,1740612673735,-717.99,0.00051262,120]
[354679099,1740612673745,-913.57,0.00051262,120]
[354679100,1740612673755,-500.0,0.00051262,120]
[354679101,1740612673765,-1771.38,0.00051262,120]
[354679102,1740612673776,-500.0,0.00051262,120]
[354679103,1740612673786,-1070.59,0.00051262,120]
[354679104,1740612673796,-500.0,0.00051262,120]
[354679105,1740612673806,-2028.34,0.00051262,120]
[354679106,1740612673816,-724.64,0.00051262,120]
[354679107,1740612673826,-500.0,0.00051262,120]
[354679108,1740612673836,-1677.07,0.00051262,120]
[354679109,1740612673845,-700.65,0.00051262,120]
[354679110,1740612673855,-1712.4,0.00051262,120]
[354679111,1740612673866,-2539.69,0.00051262,120]
[354679112,1740612673877,-712.64,0.00051262,120]
[354679113,1740612673887,-500.0,0.00051262,120]
[354679114,1740612673897,-810.43,0.00051262,120]
[354679115,1740612673907,-3307.1,0.00051262,120]
[354679116,1740612673918,-500.0,0.00051262,120]
[354679117,1740612673927,-618.09,0.00051262,120]
[354679118,1740612673937,-882.96,0.00051262,120]
[354679119,1740612674070,-1050.94,0.00051262,120]
[354679120,1740612674083,-500.0,0.00051262,120]
[354679121,1740612674093,-500.0,0.00051262,120]
[354679122,1740612674103,-625.66,0.00051262,120]
[354679123,1740612674114,-1339.38,0.00051262,120]
[354679124,1740612674123,-778.41,0.00051262,120]
[354679125,1740612674132,-500.0,0.00051262,120]
[354679126,1740612674142,-500.0,0.00051262,120]
[354679127,1740612674151,-500.0,0.00051262,120]
[354679128,1740612674161,-536.72,0.00051262,120]
[354679129,1740612674172,-500.0,0.00051262,120]
[354679130,1740612674182,-500.0,0.00051262,120]
[354679131,1740612674192,-500.0,0.00051264,120]
[354679132,1740612674202,-500.0,0.00051264,120]
[354679133,1740612674212,-611.27,0.00051264,120]
[354679134,1740612674223,-1000.0,0.000513,65]
[354679135,1740612674233,-800.0,0.00051332,30]
[354679136,1740612674243,-800.0,0.00051337,30]
[354679137,1740612674252,-405.117872,0.0005135,120]
[354679138,1740612674262,-500.0,0.00051377,2]
[354679139,1740612674272,-500.75593073,0.0005143,60]
[354679140,1740612674282,-874.21,0.000515,30]
[354679141,1740612674291,-2778.45,0.00051505,120]
[354679142,1740612674301,-500.0,0.00051505,120]
[354679143,1740612674310,-500.0,0.00051505,120]
[354679144,1740612674319,-861.01,0.00051505,120]
[354679145,1740612674330,-659.09,0.00051505,120]
[354679146,1740612674339,-1687.34,0.00051505,120]
[354679147,1740612674349,-1507.91,0.00051505,120]
[354679148,1740612674359,-795.66,0.00051505,120]
[354679149,1740612674369,-1484.64,0.00051505,120]
[354679150,1740612674379,-896.66,0.00051505,120]
[354679151,1740612674389,-1237.88,0.00051505,120]
[354679152,1740612674399,-1998.85,0.00051505,120]
[354679153,1740612674409,-500.0,0.00051505,120]
[354679154,1740612674419,-1476.84,0.00051505,120]
[354679155,1740612674429,-500.0,0.00051505,120]
[354679156,1740612674439,-842.28,0.00051505,120]
[354679157,1740612674448,-1327.97,0.00051505,120]
[354679158,1740612674459,-978.17,0.00051505,120]
[354679159,1740612674469,-35665.21,0.00051505,120]
[354679160,1740612674478,-1674.6,0.00051505,120]
[354679161,1740612674488,-3374.64,0.00051505,120]
[354679162,1740612674498,-3689.39,0.00051505,120]
[354679163,1740612674508,-999.91,0.00051505,120]
[354679164,1740612674518,-1654.58,0.00051505,120]
[354679165,1740612674528,-8800.67,0.00051505,120]
[354679166,1740612674537,-572.35,0.00051505,120]
[354679167,1740612674547,-2141.75,0.00051505,120]
[354679168,1740612674558,-302.42779566,0.00051505,120]
[354679169,1740612674568,-15272.81,0.00051505,120]
[354679170,1740612674577,-1712.31,0.00051505,120]
[354679171,1740612674587,-1889.46,0.00051505,120]
[354679172,1740612674596,-112701.3,0.00051505,7]
[354679173,1740612674607,-500.0,0.00051505,120]
[354679174,1740612674616,-1846.65,0.00051505,120]
[354679175,1740612674626,-1230.19,0.00051505,120]
[354679176,1740612674636,-513.49,0.00051505,120]
[354679177,1740612674645,-500.0,0.00051505,120]
[354679178,1740612674656,-562.96,0.00051505,120]
[354679179,1740612674666,-500.0,0.00051505,120]
[354679180,1740612674675,-151.0,0.00051506,120]
[354679181,1740612674685,-500.0,0.00051506,120]
[354679182,1740612674697,-663.11,0.00051506,120]
[354679183,1740612674707,-690.9,0.00051506,120]
[354679184,1740612674716,-500.0,0.00051506,120]
[354679185,1740612674727,-500.0,0.00051506,120]
[354679186,1740612674737,-500.0,0.00051506,120]
[354679187,1740612674748,-541.34,0.00051506,120]
[354679188,1740612674758,-545.66,0.00051506,120]
[354679189,1740612674767,-683.01,0.00051506,120]
[354679190,1740612674778,-500.0,0.00051506,120]
[354679191,1740612674788,-500.0,0.00051506,120]
[354679192,1740612674798,-880.49,0.00051506,120]
[354679193,1740612674808,-500.0,0.00051506,120]
[354679194,1740612674817,-500.0,0.00051506,120]
[354679195,1740612674827,-500.0,0.00051506,120]
[354679196,1740612674837,-502.31209803,0.00051506,120]
[354679197,1740612674847,-500.0,0.00051506,120]
[354679198,1740612674857,-500.0,0.00051506,120]
[354679199,1740612674867,-500.0,0.00051506,120]
[354679200,1740612674877,-434.79642,0.00051506,120]
[354679201,1740612674887,-1645.83,0.00051506,120]
[354679202,1740612674896,-958.64,0.00051506,120]
[354679203,1740612674905,-500.0,0.00051506,120]
[354679204,1740612674916,-162.034499,0.00051506,120]
[354679205,1740612674925,-162.034499,0.00051506,120]
[354679206,1740612674934,-759.37,0.00051506,120]
[354679207,1740612674943,-500.0,0.00051506,120]
[354679208,1740612674953,-240.056046,0.00051506,120]
[354679209,1740612674963,-500.0,0.00051506,120]
[354679210,1740612674973,-810.724101,0.00051506,120]
[354679211,1740612674982,-500.0,0.00051506,120]
[354679212,1740612674994,-500.0,0.00051506,120]
[354679213,1740612675003,-151.0,0.00051506,120]
[354679214,1740612675013,-810.724101,0.00051506,120]
[354679215,1740612675022,-500.0,0.00051506,120]
[354679216,1740612675031,-1087.06,0.00051506,120]
[354679217,1740612675040,-154.116156,0.00051506,120]
[354679218,1740612675049,-743.94,0.00051506,120]
[354679219,1740612675058,-1536.490674,0.00051506,120]
[354679220,1740612675067,-899.12,0.00051506,120]
[354679221,1740612675077,-168.258599,0.00051506,120]
[354679222,1740612675086,-168.258599,0.00051506,120]
[354679223,1740612675095,-151.0,0.00051506,120]
[354679224,1740612675105,-1139.33,0.00051506,120]
[354679225,1740612675114,-969.63,0.00051506,120]
[354679226,1740612675124,-161.706624,0.00051506,120]
[354679227,1740612675134,-1562.95,0.00051506,120]
[354679228,1740612675143,-649.28,0.00051506,120]
[354679229,1740612675153,-500.0,0.00051506,120]
[354679230,1740612675163,-683.51,0.00051506,120]
[354679231,1740612675174,-2036.394798,0.00051506,120]
[354679232,1740612675184,-2036.394798,0.00051506,120]
[354679233,1740612675195,-500.0,0.00051506,120]
[354679234,1740612675205,-618.32,0.00051506,120]
[354679235,1740612675216,-702.29,0.00051506,120]
[354679236,1740612675226,-413.365869,0.00051506,110]
[354679237,1740612675235,-413.365869,0.00051506,110]
[354679238,1740612675246,-500.0,0.00051506,120]
[354679239,1740612675255,-151.0,0.00051506,120]
[354679240,1740612675265,-500.0,0.00051506,120]
[354679241,1740612675276,-500.0,0.00051506,120]
[354679242,1740612675286,-151.0,0.00051506,120]
[354679243,1740612675296,-623.05,0.00051506,120]
[354679244,1740612675307,-812.36,0.00051506,120]
[354679245,1740612675316,-151.0,0.00051506,120]
[354679246,1740612675326,-500.0,0.00051506,120]
[354679247,1740612675336,-500.0,0.00051506,120]
[354679248,1740612675346,-977.8,0.00051506,120]
[354679249,1740612675356,-500.0,0.00051506,120]
[354679250,1740612675366,-500.0,0.00051506,120]
[354679251,1740612675377,-500.0,0.00051506,120]
[354679252,1740612675387,-689.260793,0.00051506,120]
[354679253,1740612675397,-476.944486,0.00051506,30]
[354679254,1740612675407,-689.260793,0.00051506,120]
[354679255,1740612675416,-476.944486,0.00051506,30]
[354679256,1740612675427,-500.0,0.00051506,120]
[354679257,1740612675436,-500.0,0.00051506,120]
[354679258,1740612675446,-151.0,0.00051506,120]
[354679259,1740612675455,-846.39,0.00051506,120]
[354679260,1740612675465,-322.736773,0.00051506,120]
[354679261,1740612675475,-500.0,0.00051506,120]
[354679262,1740612675484,-322.736773,0.00051506,120]
[354679263,1740612675494,-254.826343,0.00051506,120]
[354679264,1740612675503,-564.78,0.00051506,120]
[354679265,1740612675512,-254.826343,0.00051506,120]
[354679266,1740612675522,-241.442179,0.00051506,120]
[354679267,1740612675532,-539.55,0.00051506,120]
[354679268,1740612675542,-241.442179,0.00051506,120]
[354679269,1740612675551,-151.0,0.00051506,120]
[354679270,1740612675561,-500.0,0.00051506,120]
[354679271,1740612675570,-1428.1,0.00051506,120]
[354679272,1740612675579,-500.0,0.00051506,120]
[354679273,1740612675589,-600.9,0.00051506,120]
[354679274,1740612675598,-500.0,0.00051506,120]
[354679275,1740612675607,-615.68,0.00051506,120]
[354679276,1740612675617,-802.71,0.00051506,120]
[354679277,1740612675626,-859.89,0.00051506,120]
[354679278,1740612675637,-500.0,0.00051506,120]
[354679279,1740612675647,-7716.64,0.00051506,120]
[354679280,1740612675656,-1087.51,0.00051506,120]
[354679281,1740612675666,-500.0,0.00051506,120]
[354679282,1740612675676,-11356.27,0.00051506,120]
[354679283,1740612675685,-8145.14,0.00051506,120]
[354679284,1740612675696,-560.88971153,0.00051506,120]
[354679285,1740612675707,-500.0,0.00051506,120]
[354679286,1740612675716,-2928.74,0.00051506,120]
[354679287,1740612675726,-1626.2,0.00051506,120]
[354679288,1740612675735,-982.75,0.00051506,120]
[354679289,1740612675746,-513.83,0.00051506,120]
[354679290,1740612675756,-500.0,0.00051506,120]
[354679291,1740612675766,-802.07,0.00051506,120]
[354679292,1740612675776,-304.42151355,0.00051506,120]
[354679293,1740612675786,-3574.17,0.00051506,120]
[354679294,1740612675795,-476.0,0.00051506,120]
[354679295,1740612675805,-1405.43,0.00051506,120]
[354679296,1740612675815,-511.36,0.00051506,30]
[354679297,1740612675824,-7025.95,0.00051506,120]
[354679298,1740612675833,-500.0,0.00051506,120]
[354679299,1740612675842,-732.33,0.00051506,120]
[354679300,1740612675852,-11606.25,0.00051506,3]
[354679301,1740612675863,-500.0,0.00051506,120]
[354679302,1740612675872,-253.599015,0.00051506,120]
[354679303,1740612675883,-253.599009,0.00051506,120]
[354679304,1740612675894,-522.21,0.00051506,120]
[354679305,1740612675905,-6098.04,0.00051506,120]
[354679306,1740612675915,-1769.31,0.00051506,120]
[354679307,1740612675925,-977.962218,0.00051506,120]
[354679308,1740612675935,-531.78,0.00051506,120]
[354679309,1740612675944,-5165.94,0.00051506,120]
[354679310,1740612675954,-1296.39,0.00051506,120]
[354679311,1740612675963,-977.962224,0.00051506,120]
[354679312,1740612675972,-745.32,0.00051506,120]
[354679313,1740612675982,-1319.72,0.00051506,120]
[354679314,1740612675991,-1434.05,0.00051506,120]
[354679315,1740612676001,-602.5,0.00051506,120]
[354679316,1740612676010,-901.96,0.00051506,120]
[354679317,1740612676019,-298.512815,0.00051506,120]
[354679318,1740612676029,-11788.68,0.00051506,120]
[354679319,1740612676038,-500.0,0.00051506,120]
[354679320,1740612676048,-298.512807,0.00051506,120]
[354679321,1740612676057,-3610.93,0.00051506,120]
[354679322,1740612676068,-506.91,0.00051506,120]
[354679323,1740612676077,-1267.92,0.00051506,120]
[354679324,1740612676087,-2222.15,0.00051506,120]
[354679325,1740612676098,-600.75,0.00051506,120]
[354679326,1740612676108,-963.51,0.00051506,120]
[354679327,1740612676123,-1872.17,0.00051506,120]
[354679328,1740612676133,-7675.21,0.00051506,120]
[354679329,1740612676145,-3447.65,0.00051506,120]
[354679330,1740612676155,-539.76082376,0.00051506,120]
[354679331,1740612676165,-714.42,0.00051506,120]
[354679332,1740612676176,-500.0,0.00051506,120]
[354679333,1740612676185,-1518.89,0.00051506,120]
[354679334,1740612676195,-828.63,0.00051506,120]
[354679335,1740612676205,-500.0,0.00051506,120]
[354679336,1740612676215,-500.0,0.00051506,120]
[354679337,1740612676226,-874.37,0.00051506,120]
[354679338,1740612676238,-16446.27,0.00051506,120]
[354679339,1740612676248,-987.91,0.00051506,120]
[354679340,1740612676259,-544.41,0.00051506,120]
[354679341,1740612676268,-500.0,0.00051506,120]
[354679342,1740612676389,-1207.51,0.00051512,120]
[354679343,1740612676399,-818.25,0.00051512,120]
[354679344,1740612676409,-582.64,0.00051512,120]
[354679345,1740612676421,-565.06,0.00051512,120]
[354679346,1740612676430,-797.5,0.00051512,120]
[354679347,1740612676440,-699.41,0.00051512,120]
[354679348,1740612676450,-2789.44,0.00051512,120]
[354679349,1740612676459,-650.93,0.00051512,120]
[354679350,1740612676469,-910.21,0.00051512,120]
[354679351,1740612676479,-3161.02,0.00051512,120]
[354679352,1740612676488,-500.0,0.00051512,120]
[354679353,1740612676498,-725.05,0.00051512,120]
[354679354,1740612676508,-500.0,0.00051512,120]
[354679355,1740612676519,-3123.49,0.00051512,120]
[354679356,1740612676528,-1532.22,0.00051512,120]
[354679357,1740612676537,-696.04,0.00051512,120]
[354679358,1740612676547,-775.5,0.00051512,120]
[354679359,1740612676557,-1560.0,0.00051512,120]
[354679360,1740612676566,-554.15,0.00051512,120]
[354679361,1740612676575,-508.29,0.00051512,120]
[354679362,1740612676584,-636.3,0.00051512,120]
[354679363,1740612676594,-1875.09,0.00051512,120]
[354679364,1740612676603,-506.26,0.00051512,120]
[354679365,1740612676612,-727.01,0.00051512,120]
[354679366,1740612676622,-738.9,0.00051512,120]
[354679367,1740612676632,-500.0,0.00051512,120]
[354679368,1740612676642,-500.0,0.00051512,120]
[354679369,1740612676653,-500.0,0.00051512,15]
[354679370,1740612676663,-500.0,0.00051512,120]
[354679371,1740612676678,-2768.85,0.00051512,120]
[354679372,1740612676689,-937.23,0.00051512,120]
[354679373,1740612676701,-786.35,0.00051512,120]
[354679374,1740612676710,-540.54,0.00051536,120]
[354679375,1740612676720,-717.99,0.00051536,120]
[354679376,1740612676731,-913.57,0.00051536,120]
[354679377,1740612676740,-500.0,0.00051536,120]
[354679378,1740612676750,-1771.38,0.00051536,120]
[354679379,1740612676759,-467.69491959,0.00051536,120]
[354679380,1740612676771,-1070.59,0.00051536,120]
[354679381,1740612676781,-500.0,0.00051536,120]
[354679382,1740612676790,-2028.34,0.00051536,120]
[354679383,1740612676800,-724.64,0.00051536,120]
[354679384,1740612676809,-500.0,0.00051536,120]
[354679385,1740612676818,-1677.07,0.00051536,120]
[354679386,1740612676827,-700.65,0.00051536,120]
[354679387,1740612676837,-1712.4,0.00051536,120]
[354679388,1740612676847,-2539.69,0.00051536,120]
[354679389,1740612676857,-712.64,0.00051536,120]
[354679390,1740612676866,-500.0,0.00051536,120]
[354679391,1740612676875,-810.43,0.00051536,120]
[354679392,1740612676885,-3307.1,0.00051536,120]
[354679393,1740612676895,-500.0,0.00051536,120]
[354679394,1740612676904,-618.09,0.00051536,120]
[354679395,1740612676914,-882.96,0.00051536,120]
[354679396,1740612676928,-1050.94,0.00051536,120]
[354679397,1740612676939,-500.0,0.00051536,120]
[354679398,1740612676948,-500.0,0.00051536,120]
[354679399,1740612676957,-625.66,0.00051536,120]
[354679400,1740612676967,-1339.38,0.00051536,120]
[354679401,1740612676975,-778.41,0.00051536,120]
[354679402,1740612676984,-185.11539352,0.00051536,120]
[354679403,1740612676993,-500.0,0.00051536,120]
[354679404,1740612677003,-194.67,0.00051536,120]
[354679405,1740612677012,-536.72,0.00051536,120]
[354679406,1740612677021,-500.0,0.00051536,120]
[354679407,1740612677031,-500.0,0.00051536,120]
[354679408,1740612677040,-345.07915279,0.00051538,120]
[354679409,1740612677049,-500.0,0.00051538,120]
[354679410,1740612677059,-611.27,0.00051538,120]
[354679411,1740612677068,-10000.0,0.00051556,120]
[354679412,1740612677077,-800.0,0.00051573,30]
[354679413,1740612677087,-800.0,0.00051602,30]
[354679414,1740612677096,-3343.65,0.000517,30]
[354679415,1740612677106,-5450.65,0.000517,30]
[354679416,1740612677117,-250282.84,0.000517,30]
[354679417,1740612677127,-434.79642,0.000517,120]
[354679418,1740612677138,-162.034499,0.000517,120]
[354679419,1740612677148,-162.034499,0.000517,120]
[354679420,1740612677159,-800.0,0.00051735,30]
[354679421,1740612677170,-238.81848925,0.00051758,28]
[354679422,1740612677179,-800.0,0.00051761,30]
[354679423,1740612677188,-2778.45,0.00051779,120]
[354679424,1740612677197,-500.0,0.00051779,120]
[354679425,1740612677206,-500.0,0.00051779,120]
[354679426,1740612677215,-861.01,0.00051779,120]
[354679427,1740612677225,-659.09,0.00051779,120]
[354679428,1740612677235,-1687.34,0.00051779,120]
[354679429,1740612677244,-1507.91,0.00051779,120]
[354679430,1740612677254,-795.66,0.00051779,120]
[354679431,1740612677264,-1484.64,0.00051779,120]
[354679432,1740612677274,-896.66,0.00051779,120]
[354679433,1740612677283,-1237.88,0.00051779,120]
[354679434,1740612677293,-1998.85,0.00051779,120]
[354679435,1740612677302,-500.0,0.00051779,120]
[354679436,1740612677311,-1476.84,0.00051779,120]
[354679437,1740612677321,-500.0,0.00051779,120]
[354679438,1740612677332,-842.28,0.00051779,120]
[354679439,1740612677341,-1327.97,0.00051779,120]
[354679440,1740612677350,-978.17,0.00051779,120]
[354679441,1740612677359,-35665.21,0.00051779,120]
[354679442,1740612677368,-1674.6,0.00051779,120]
[354679443,1740612677377,-3374.64,0.00051779,120]
[354679444,1740612677387,-3689.39,0.00051779,120]
[354679445,1740612677396,-999.91,0.00051779,120]
[354679446,1740612677405,-1654.58,0.00051779,120]
[354679447,1740612677415,-8800.67,0.00051779,120]
[354679448,1740612677426,-572.35,0.00051779,120]
[354679449,1740612677435,-2141.75,0.00051779,120]
[354679450,1740612677444,-15272.81,0.00051779,120]
[354679451,1740612677453,-1712.31,0.00051779,120]
[354679452,1740612677463,-1889.46,0.00051779,120]
[354679453,1740612677472,-112701.3,0.00051779,7]
[354679454,1740612677482,-500.0,0.00051779,120]
[354679455,1740612677491,-1846.65,0.00051779,120]
[354679456,1740612677499,-1230.19,0.00051779,120]
[354679457,1740612677509,-513.49,0.00051779,120]
[354679458,1740612677518,-500.0,0.00051779,120]
[354679459,1740612677528,-562.96,0.00051779,120]
[354679460,1740612677537,-500.0,0.00051779,120]
[354679461,1740612677546,-151.0,0.0005178,120]
[354679462,1740612677555,-500.0,0.0005178,120]
[354679463,1740612677565,-663.11,0.0005178,120]
[354679464,1740612677574,-690.9,0.0005178,120]
[354679465,1740612677583,-500.0,0.0005178,120]
[354679466,1740612677593,-500.0,0.0005178,120]
[354679467,1740612677603,-500.0,0.0005178,120]
[354679468,1740612677612,-541.34,0.0005178,120]
[354679469,1740612677622,-545.66,0.0005178,120]
[354679470,1740612677631,-683.01,0.0005178,120]
[354679471,1740612677640,-500.0,0.0005178,120]
[354679472,1740612677651,-500.0,0.0005178,120]
[354679473,1740612677660,-880.49,0.0005178,120]
[354679474,1740612677670,-500.0,0.0005178,120]
[354679475,1740612677679,-503.72994548,0.0005178,120]
[354679476,1740612677689,-500.0,0.0005178,120]
[354679477,1740612677702,-500.0,0.0005178,120]
[354679478,1740612677712,-500.0,0.0005178,120]
[354679479,1740612677722,-1645.83,0.0005178,120]
[354679480,1740612677731,-958.64,0.0005178,120]
[354679481,1740612677741,-233.33271165,0.0005178,120]
[354679482,1740612677750,-759.37,0.0005178,120]
[354679483,1740612677759,-500.0,0.0005178,120]
[354679484,1740612677769,-500.0,0.0005178,120]
[354679485,1740612677782,-325.09686761,0.0005178,120]
[354679486,1740612677792,-810.724101,0.0005178,120]
[354679487,1740612677802,-628.1694738,0.0005178,120]
[354679488,1740612677811,-151.0,0.0005178,120]
[354679489,1740612677821,-810.724101,0.0005178,120]
[354679490,1740612677831,-500.0,0.0005178,120]
[354679491,1740612677840,-1087.06,0.0005178,120]
[354679492,1740612677849,-1536.490674,0.0005178,120]
[354679493,1740612677859,-743.94,0.0005178,120]
[354679494,1740612677869,-1536.490674,0.0005178,120]
[354679495,1740612677879,-899.12,0.0005178,120]
[354679496,1740612677888,-168.258599,0.0005178,120]
[354679497,1740612677898,-168.258599,0.0005178,120]
[354679498,1740612677907,-151.0,0.0005178,120]
[354679499,1740612677917,-1139.33,0.0005178,120]
[354679500,1740612677927,-969.63,0.0005178,120]
[354679501,1740612677936,-1562.95,0.0005178,120]
[354679502,1740612677945,-649.28,0.0005178,120]
[354679503,1740612677954,-500.0,0.0005178,120]
[354679504,1740612677964,-683.51,0.0005178,120]
[354679505,1740612677974,-2036.394798,0.0005178,120]
[354679506,1740612677983,-2036.394798,0.0005178,120]
[354679507,1740612677993,-500.0,0.0005178,120]
[354679508,1740612678002,-618.32,0.0005178,120]
[354679509,1740612678011,-702.29,0.0005178,120]
[354679510,1740612678021,-413.365869,0.0005178,110]
[354679511,1740612678030,-413.365869,0.0005178,110]
[354679512,1740612678039,-500.0,0.0005178,120]
[354679513,1740612678049,-500.0,0.0005178,120]
[354679514,1740612678058,-533.09695293,0.0005178,120]
[354679515,1740612678067,-623.05,0.0005178,120]
[354679516,1740612678077,-812.36,0.0005178,120]
[354679517,1740612678087,-151.0,0.0005178,120]
[354679518,1740612678096,-500.0,0.0005178,120]
[354679519,1740612678105,-213.82240424,0.0005178,120]
[354679520,1740612678114,-977.8,0.0005178,120]
[354679521,1740612678123,-648.53585617,0.0005178,120]
[354679522,1740612678132,-500.0,0.0005178,120]
[354679523,1740612678142,-500.0,0.0005178,120]
[354679524,1740612678151,-689.260793,0.0005178,120]
[354679525,1740612678161,-476.944486,0.0005178,30]